[Event "European Women-ch 2023"]
[Site "Petrovac"]
[Date "2023.03.25"]
[Round "7.25"]
[White "Ivanovic, Tara"]
[Black "Maras, Marija Mia"]
[Result "1-0"]
[Annotator "NA RC COMBH"]
[ECO "B75"]
[WhiteElo "1472"]
[BlackElo "1051"]
[PlyCount "103"]
[EventDate "2023.03.15"]
[EventType "swiss"]
[EventCountry "MNE"]
[SourceTitle "playchess.com"]
[Source "ChessBase"]
[SourceQuality "1"]
[TimeControl "40/5400+30:1800+30"]

1. e4 {[%emt 0:00:03]} c5 {[%emt 0:00:02]} 2. Nf3 {[%emt 0:00:06]} Nc6 {[%emt 0:00:04]} 3. d4 {[%emt 0:00:24]} cxd4 {[%emt 0:00:03]} 4. Nxd4 {[%emt 0:00:04]} g6 {[%emt 0:00:04]} 5. Nc3 {[%emt 0:00:07]} Bg7 {[%emt 0:00:05]} 6. Be3 {[%emt 0:00:05]} Nf6 {[%emt 0:00:08]} 7. f3 {[%emt 0:02:10]} d6 {[%emt 0:01:06]} 8. Qd2 {[%emt 0:00:24]} e5 {[%emt 0:01:32]} 9. Nb3 {[%emt 0:01:11]} O-O {[%emt 0:02:54]} 10. O-O-O {[%emt 0:00:53]} Ne8 {[%emt 0:02:43]} 11. Nb5 {[%emt 0:05:50]} Be6 {[%emt 0:02:57]} 12. Nxd6 {[%emt 0:01:19]} Nxd6 {[%emt 0:00:41]} 13. Qxd6 {[%emt 0:00:03]} Qxd6 {[%emt 0:00:08]} 14. Rxd6 {[%emt 0:00:10]} Nb4 {[%emt 0:01:27]} 15. a3 {[%emt 0:02:25]} Bxb3 {[%emt 0:00:52]} 16. cxb3 {[%emt 0:00:14]} Rfc8+ {[%emt 0:00:47]} 17. Kb1 {[%emt 0:01:23]} Nc6 {[%emt 0:02:52]} 18. Rd7 {[%emt 0:01:58]} Rab8 {[%emt 0:04:06]} 19. Bc4 {[%emt 0:01:15]} Nd8 {[%emt 0:08:48]} 20. Bxa7 {[%emt 0:01:22]} Ra8 {[%emt 0:01:14]} 21. Bb6 {[%emt 0:00:29]} Rab8 {[%emt 0:00:41]} 22. Bxd8 {[%emt 0:03:29]} Rxd8 {[%emt 0:00:11]} 23. Rxf7 {[%emt 0:00:19]} Kh8 {[%emt 0:01:05]} 24. Bd5 {[%emt 0:00:13]} b5 {[%emt 0:00:24]} 25. Rc1 {[%emt 0:00:16]} Rf8 {[%emt 0:01:48]} 26. Rxf8+ {[%emt 0:02:36]} Rxf8 {[%emt 0:00:07]} 27. Rc7 {[%emt 0:00:37]} Rd8 {[%emt 0:02:06]} 28. Rb7 {[%emt 0:00:20]} Bh6 {[%emt 0:00:47]} 29. Rxb5 {[%emt 0:00:15]} Rc8 {[%emt 0:00:11]} 30. Bc4 {[%emt 0:00:13]} Kg7 {[%emt 0:00:32]} 31. Kc2 {[%emt 0:00:27]} Kf6 {[%emt 0:00:27]} 32. a4 {[%emt 0:01:05]} Bf4 {[%emt 0:00:23]} 33. h3 {[%emt 0:02:39]} Kg5 {[%emt 0:01:10]} 34. a5 {[%emt 0:02:02]} Ra8 {[%emt 0:01:21]} 35. b4 {[%emt 0:02:04]} Rd8 {[%emt 0:02:25]} 36. Rd5 {[%emt 0:00:24]} Rc8 {[%emt 0:00:52]} 37. Kb3 {[%emt 0:00:11]} Kh4 {[%emt 0:00:24]} 38. a6 {[%emt 0:00:55]} Ra8 {[%emt 0:01:14]} 39. b5 {[%emt 0:00:11]} Be3 {[%emt 0:00:56]} 40. Rxe5 {[%emt 0:00:00]} Kg3 {[%emt 0:00:00]} 41. Re6 {[%emt 0:02:41]} Kxg2 {[%emt 0:02:27]} 42. b6 {[%emt 0:00:16]} Kxh3 {[%emt 0:01:12]} 43. b7 {[%emt 0:00:40]} Rb8 {[%emt 0:00:05]} 44. Rc6 {[%emt 0:00:12]} Kg3 {[%emt 0:01:26]} 45. Rc8 {[%emt 0:00:12]} Bf4 {[%emt 0:00:05]} 46. Kc2 {[%emt 0:01:16]} h5 {[%emt 0:01:04]} 47. a7 {[%emt 0:00:20]} h4 {[%emt 0:00:59]} 48. Rxb8 {[%emt 0:00:25]} h3 {[%emt 0:00:20]} 49. a8=Q {[%emt 0:00:25]} h2 {[%emt 0:00:05]} 50. Rh8 {[%emt 0:00:10]} Kxf3 {[%emt 0:00:41]} 51. Qa3+ {[%emt 0:00:24]} Kg2 {[%emt 0:00:36]} 52. Qh3+ {[%emt 0:00:49]} 1-0

[Event "European Women-ch 2023"]
[Site "Petrovac"]
[Date "2023.03.25"]
[Round "7.26"]
[White "Makka, Ioulia"]
[Black "Lehaci, Miruna-Daria"]
[Result "0-1"]
[Annotator "TA"]
[ECO "B23"]
[WhiteElo "1949"]
[BlackElo "2202"]
[PlyCount "98"]
[EventDate "2023.03.15"]
[EventType "swiss"]
[EventCountry "MNE"]
[SourceTitle "playchess.com"]
[Source "ChessBase"]
[SourceQuality "1"]
[TimeControl "40/5400+30:1800+30"]

{[%evp 9,98,0,8,10,6,2,3,16,4,16,12,22,61,48,58,37,52,35,118,100,129,129,162,158,182,40,44,40,75,42,93,67,66,56,78,-22,43,8,9,8,10,16,8,11,17,8,20,8,6,-8,0,-59,-27,-8,0,0,0,0,0,27,23,0,0,-153,-153,-153,-153,-153,-161,-168,-131,-257,-249,-815,-815,-800,-787,-712,-711,-1288,-1283,-1219,-1135,-1295,-1287,-3060,-2369,-1716,-1495,-1600,-1472]} 1. e4 {[%emt 0:00:03]} c5 {[%emt 0:00:05]} 2. Nc3 {[%emt 0:00:21]} Nc6 {[%emt 0:00:05]} 3. Bb5 {[%emt 0:00:16]} Nd4 {[%emt 0:00:14]} 4. Bc4 {[%emt 0:00:18]} e6 {[%emt 0:00:06]} 5. Nge2 {[%emt 0:01:50]} a6 {[%emt 0:00:21]} 6. Nxd4 {[%emt 0:03:13] B23: Closed Sicilian: Lines without g3.} cxd4 {[%emt 0:00:18]} 7. Ne2 {[%emt 0:00:25]} b5 {[%emt 0:02:05]} 8. Bb3 {[%emt 0:10:00] The position is equal.} d3 {[%emt 0:03:57]} 9. cxd3 {[%emt 0:01:35]} Bb7 {[%emt 0:00:04]} 10. O-O {[%emt 0:01:01] [#]} Nf6 $146 {[%emt 0:08:33]} ({Predecessor:} 10... Bd6 11. Bc2 Qc7 12. f4 Rc8 13. Bb1 Bc5+ 14. d4 Bxd4+ 15. Nxd4 Qc5 16. Kh1 Qxd4 {1-0 Bas Mas,J (2239)-Harish,N (2075) Titled Tuesday intern op 10th May Early blitz 2022 (2)}) 11. e5 {[%emt 0:11:30]} Nd5 {[%emt 0:00:57]} 12. d4 {[%emt 0:02:06]} Qg5 {[%emt 0:06:21]} 13. f4 {[%emt 0:12:57]} Qh4 {[%emt 0:02:04]} (13... Qg4 $14 14. h3 Qh5) 14. d3 $16 {[%emt 0:04:00]} Be7 {[%emt 0:14:39]} 15. Nc3 {[%emt 0:06:59]} Nc7 {[%emt 0:04:23]} 16. Ne4 {[%emt 0:12:34]} f5 {[%emt 0:05:04]} 17. Ng3 {[%emt 0:09:15]} (17. exf6 $18 gxf6 18. f5) 17... h5 {[%emt 0:05:21]} 18. Bd2 {[%emt 0:02:53]} Nd5 {[%emt 0:04:41]} 19. Qe2 {[%emt 0:01:17]} (19. Qf3 $5 {[%cal Rg3f5]}) 19... Rh6 {[%emt 0:03:31]} (19... Bd8 $14) 20. Bd1 {[%emt 0:01:43][%cal Og3e4]} Bd8 {[%emt 0:01:41][%cal Be7d8,Bd8b6,Bb6d4][%mdl 32]} 21. Qf2 {[%emt 0:07:05]} (21. Nxh5 $2 g6 22. Nf6+ Bxf6 $19) 21... Bb6 {[%emt 0:03:57]} 22. Be1 {[%emt 0:01:13] [#]} (22. Kh1 $16) 22... Nxf4 {[%emt 0:08:28]} 23. Qxf4 {[%emt 0:01:44]} (23. Nxf5 {simplifies} Qxf2+ 24. Rxf2 Nh3+ 25. gxh3 exf5 26. Bc3) 23... Bxd4+ {[%emt 0:00:03]} 24. Kh1 {[%emt 0:00:19]} Qxf4 {[%emt 0:00:04]} 25. Rxf4 {[%emt 0:00:08]} Bxb2 {[%emt 0:00:04]} 26. Rb1 {[%emt 0:00:29]} (26. Bxh5+ g6 27. Rb1 Bxe5 $17) 26... Bxe5 {[%emt 0:00:06]} 27. Rh4 {[%emt 0:03:35]} (27. Bxh5+ g6 28. Bf3 Bxf4 $15) 27... g6 {[%emt 0:00:04]} 28. Bd2 {[%emt 0:01:32]} Rh8 {[%emt 0:00:07]} 29. Bg5 {[%emt 0:00:58] Repels Bf6} Kf7 {[%emt 0:01:00]} 30. Rhb4 {[%emt 0:01:15]} (30. Ne2 $11) 30... Rhc8 {[%emt 0:01:42][%mdl 1024] Black has compensation.} (30... h4 $5 {[%cal Rh4g3]} 31. Nf1 (31. Rxh4 $2 Rxh4 32. Bxh4 Rh8 $19) (31. Bxh4 $2 g5 $19) 31... h3 $17) 31. Ne2 {[%emt 0:00:43]} Bd5 {[%emt 0:01:24]} 32. a4 {[%emt 0:00:43]} Bd6 {[%emt 0:05:44]} 33. R4b2 {[%emt 0:00:26]} b4 {[%emt 0:01:35]} 34. a5 {[%emt 0:01:07]} Rab8 {[%emt 0:02:35]} 35. Bd2 {[%emt 0:00:38][%cal Rd2b4]} (35. Kg1 $5 {[%cal Rg5f4]}) 35... b3 {[%emt 0:00:05]} 36. Be3 $2 {[%emt 0:01:17] [#]} (36. Bxb3 $2 {loses.} Rxb3 37. Rxb3 Bxb3 38. Rxb3 Rc2 $19) (36. Nf4 $11 Be5 37. Nxd5 Bxb2 38. Nb6 (38. Rxb2 exd5 39. Kg1 Rb5 $15)) 36... Ba3 $1 $17 {[%emt 0:01:23] Black has more active pieces.} 37. Nf4 {[%emt 0:00:33][%cal Of4d5]} ({Reject} 37. Rxb3 Bxb3 38. Bxb3 d5 $17) 37... Bxb2 {[%emt 0:02:55]} 38. Rxb2 {[%emt 0:00:19]} Rb5 {[%emt 0:01:49]} 39. Bd2 {[%emt 0:00:41]} Rcb8 {[%emt 0:02:34]} 40. Nxd5 {[%emt 0:00:00]} (40. Kg1 $17) 40... Rxd5 $19 {[%emt 0:00:00]} ({Not} 40... exd5 41. d4 $17) 41. Bf4 $2 {[%emt 0:16:15]} (41. Kg1) 41... Rb4 {[%emt 0:01:06] Black is clearly winning.} 42. g3 {[%emt 0:01:18]} Rxd3 {[%emt 0:03:49]} 43. Be2 {[%emt 0:03:08]} Rd5 {[%emt 0:01:01]} 44. Bc7 {[%emt 0:03:21]} Rc5 {[%emt 0:02:19]} 45. Bd6 {[%emt 0:06:00]} Rc1+ {[%emt 0:00:10]} 46. Kg2 {[%emt 0:01:09]} Rc2 {[%emt 0:00:23]} 47. Rb1 {[%emt 0:01:56]} Rxe2+ {[%emt 0:05:37]} 48. Kf1 {[%emt 0:00:56]} Ree4 {[%emt 0:01:21] Strongly threatening ...Rb5.} 49. Bxb4 {[%emt 0:00:31]} Rxb4 {[%emt 0:00:03] Never resign too early! A cool game by Lehaci.   Weighted Error Value: White=0.67/Black=0.37} 0-1

[Event "European Women-ch 2023"]
[Site "Petrovac"]
[Date "2023.03.25"]
[Round "7.27"]
[White "Lach, Aleksandra"]
[Black "Golsta, Ramona"]
[Result "1/2-1/2"]
[Annotator "TA"]
[ECO "B30"]
[WhiteElo "2170"]
[BlackElo "1760"]
[PlyCount "99"]
[EventDate "2023.03.15"]
[EventType "swiss"]
[EventCountry "MNE"]
[SourceTitle "playchess.com"]
[Source "ChessBase"]
[SourceQuality "1"]
[TimeControl "40/5400+30:1800+30"]

{[%evp 10,99,12,0,0,0,0,0,6,-33,-27,-16,-19,-35,-23,-25,-25,-32,-24,-32,-24,-22,-12,-28,-12,-18,-18,-36,-38,-39,-36,-50,-33,-28,-29,-54,-29,-42,-47,-68,-60,-54,-45,-76,-72,-94,-94,-71,-38,-43,-43,-119,-50,-39,-49,-42,-14,-20,-3,-8,0,-16,0,-20,-13,-8,0,0,0,-85,-85,-104,-8,-25,0,0,0,0,0,-16,-16,-16,-16,-16,-16,-43,-42,-41,0,0,0,-36]} 1. e4 {[%emt 0:00:13]} c5 {[%emt 0:00:06]} 2. Nc3 {[%emt 0:00:36]} Nc6 {[%emt 0:00:07]} 3. Bb5 {[%emt 0:00:24]} Nd4 {[%emt 0:00:09]} 4. Nf3 {[%emt 0:00:54]} e6 {[%emt 0:01:12]} 5. O-O {[%emt 0:02:39]} a6 {[%emt 0:00:07]} 6. Bd3 {[%emt 0:00:12]} Nc6 {[%emt 0:00:14] B30: Sicilian: 2...Nc6 3 Bb5, lines without ...g6.} 7. b3 {[%emt 0:01:44] 7.e5 is more advanced technology.} g6 {[%emt 0:03:57]} 8. Bb2 {[%emt 0:18:17][%cal Oc3d5]} Bg7 {[%emt 0:00:32] [#]} 9. Qc1 $146 {[%emt 0:00:42][%cal Oc3b5]} (9. Na4 $5 {[%cal Rb2g7]} Bxb2 10. Nxb2 $11) ({Predecessor:} 9. Re1 d6 10. Bf1 Nge7 11. Na4 e5 12. Nc3 O-O 13. a4 Kh8 14. Bc4 h6 15. Nd5 {0-1 Sadhwani,R (2545)-Gelfand,B (2676) PNWCC Online blitz JP 8th 2020 (11)}) 9... d6 {[%emt 0:11:03]} 10. Nd5 {[%emt 0:20:43]} e5 {[%emt 0:25:55]} 11. c3 {[%emt 0:20:16]} Nge7 {[%emt 0:00:52]} 12. Nxe7 {[%emt 0:07:59]} Qxe7 {[%emt 0:00:41]} 13. Bc4 {[%emt 0:00:15]} O-O {[%emt 0:05:28]} 14. d3 {[%emt 0:06:39]} Be6 {[%emt 0:05:03]} 15. Bd5 {[%emt 0:01:14]} f5 {[%emt 0:03:32]} 16. Qg5 {[%emt 0:05:32] Qxe7 would be deadly.} Rae8 {[%emt 0:19:07]} 17. Qxe7 {[%emt 0:03:02]} Rxe7 {[%emt 0:00:22]} 18. Bxc6 {[%emt 0:00:15]} bxc6 {[%emt 0:00:05]} 19. Rad1 {[%emt 0:04:23]} a5 {[%emt 0:05:23][%cal Ba6a5,Ba5a4,Ba4a3][%mdl 32]} 20. Ng5 {[%emt 0:01:27]} Bd7 {[%emt 0:02:30]} 21. exf5 {[%emt 0:00:15]} gxf5 {[%emt 0:02:41]} 22. Rfe1 {[%emt 0:00:23]} h6 {[%emt 0:01:45]} 23. Nf3 {[%emt 0:00:02]} a4 {[%emt 0:03:15]} 24. b4 {[%emt 0:01:12]} cxb4 {[%emt 0:01:29]} 25. cxb4 {[%emt 0:00:01] [#]} a3 $1 {[%emt 0:00:41]} 26. Bc1 {[%emt 0:01:47][%cal Oe1e2]} (26. Bc3 Rfe8) 26... Rb8 {[%emt 0:01:07]} 27. Nd2 {[%emt 0:00:57]} Be6 {[%emt 0:01:44]} ({Reject} 27... Rxb4 $6 28. Bxa3 Rd4 29. Nc4 $11) 28. Nc4 {[%emt 0:00:50]} Rd7 {[%emt 0:01:01]} ({Don't play} 28... Rxb4 29. Bxa3 Ra4 30. Bxd6 $16) 29. Bxa3 {[%emt 0:00:27]} Ra8 {[%emt 0:01:05] Strongly threatening ...Bxc4.} 30. Na5 {[%emt 0:00:34] [#]} (30. Bb2 $15) 30... Bxa2 {[%emt 0:00:37]} ({Black should play} 30... c5 $1 $17 31. f4 Bxa2) 31. Ra1 {[%emt 0:00:01]} Bd5 {[%emt 0:00:22][%cal Oc6c5]} 32. Bb2 {[%emt 0:00:47]} Bf6 {[%emt 0:00:55]} 33. f4 {[%emt 0:00:43]} Rg7 {[%emt 0:02:13]} 34. g3 {[%emt 0:00:01] White is weak on the light squares} Re7 {[%emt 0:01:12]} 35. Rac1 {[%emt 0:01:19]} Ra6 {[%emt 0:00:12]} 36. Kf2 {[%emt 0:00:32]} Kf7 {[%emt 0:00:10]} 37. fxe5 {[%emt 0:00:13]} Bxe5 {[%emt 0:00:51]} 38. Bxe5 {[%emt 0:00:20]} Rxe5 {[%emt 0:00:13]} 39. d4 {[%emt 0:01:22]} (39. Ra1 $11 {remains equal.}) 39... Re4 {[%emt 0:00:24]} 40. Rxe4 {[%emt 0:00:00]} Bxe4 $17 {[%emt 0:00:00][%mdl 4096] Endgame KRB-KRN} (40... fxe4 $17 41. g4 Rb6) 41. Ke3 $11 {[%emt 0:09:12]} Ke6 {[%emt 0:08:15]} 42. g4 $1 {[%emt 0:02:34]} Bd5 {[%emt 0:12:35]} 43. gxf5+ {[%emt 0:07:26]} Kxf5 {[%emt 0:00:08]} 44. Rf1+ {[%emt 0:00:12]} Ke6 {[%emt 0:05:08][%cal Oc6c5]} 45. Rg1 {[%emt 0:08:38]} Rb6 {[%emt 0:01:43]} 46. Rg6+ {[%emt 0:00:54]} Kd7 {[%emt 0:00:18]} 47. Rg7+ {[%emt 0:01:23]} Kc8 {[%emt 0:01:13]} 48. Rg6 {[%emt 0:00:17]} Kd7 {[%emt 0:00:06]} 49. Rg7+ {[%emt 0:01:14]} Kc8 {[%emt 0:00:05]} 50. Rg6 {[%emt 0:02:21][%csl LRd6,LRh6] Weighted Error Value: White=0.12 (very precise) /Black=0.13 (very precise)} 1/2-1/2

[Event "European Women-ch 2023"]
[Site "Petrovac"]
[Date "2023.03.25"]
[Round "7.28"]
[White "Kobak, Polina"]
[Black "Shpanko, Nadiia"]
[Result "1/2-1/2"]
[Annotator "TA"]
[ECO "E15"]
[WhiteElo "1815"]
[BlackElo "2164"]
[PlyCount "105"]
[EventDate "2023.03.15"]
[EventType "swiss"]
[EventCountry "MNE"]
[SourceTitle "playchess.com"]
[Source "ChessBase"]
[SourceQuality "1"]
[TimeControl "40/5400+30:1800+30"]

{[%evp 21,105,0,0,0,0,0,60,0,22,27,35,26,35,5,28,0,22,15,31,0,67,-84,36,51,42,24,32,38,48,37,29,43,37,0,22,0,100,84,106,15,19,-56,19,18,46,0,0,0,0,0,0,0,0,0,0,0,0,0,0,0,57,8,8,10,18,19,18,12,13,19,26,37,210,210,210,210,210,210,210,212,241,0,0,0,201,0]} 1. d4 {[%emt 0:00:03]} Nf6 {[%emt 0:00:08]} 2. c4 {[%emt 0:00:06]} e6 {[%emt 0:00:09]} 3. Nf3 {[%emt 0:00:10]} d5 {[%emt 0:00:05]} 4. g3 {[%emt 0:00:09]} Bb4+ {[%emt 0:01:29]} 5. Bd2 {[%emt 0:00:13]} Be7 {[%emt 0:00:10]} 6. Bg2 {[%emt 0:00:10]} O-O {[%emt 0:02:12]} 7. O-O {[%emt 0:00:09]} c6 {[%emt 0:01:37]} 8. Qc2 {[%emt 0:00:27]} Nbd7 {[%emt 0:02:53]} 9. Bf4 {[%emt 0:00:38]} b6 {[%emt 0:07:44]} 10. Rd1 {[%emt 0:01:29]} Ba6 {[%emt 0:06:35]} 11. b3 {[%emt 0:00:24] 11.cxd5 gains popularity.} Rc8 {[%emt 0:02:10]} 12. Nc3 {[%emt 0:01:21] E15: Queen's Indian: 4 g3 sidelines, 4 g3 Ba6 and 4 g3 Bb7 early deviations.} Nh5 {[%emt 0:14:09]} 13. Bc1 {[%emt 0:03:42]} Qc7 {[%emt 0:05:52] [#]} (13... Nhf6 $11) 14. Bb2 $146 {[%emt 0:12:08]} (14. e4 $14) ({Predecessor:} 14. e4 dxc4 15. Qe2 b5 16. e5 g6 17. bxc4 bxc4 18. Bg5 Qd8 19. Ne4 Bxg5 20. Nfxg5 {½-½ San Segundo Carrillo,P (2508)-Tiviakov,S (2603) EU-ch 2nd Ohrid 2001 (3)}) 14... dxc4 {[%emt 0:03:05]} 15. Nd2 {[%emt 0:00:21]} cxb3 {[%emt 0:02:59]} 16. axb3 {[%emt 0:00:07]} Nb8 {[%emt 0:03:30]} 17. e4 {[%emt 0:09:23][%mdl 1024] White has compensation.} Nf6 {[%emt 0:04:19]} 18. Ra2 {[%emt 0:17:02]} Rcd8 {[%emt 0:06:12]} 19. Nf3 {[%emt 0:04:36]} Qc8 {[%emt 0:07:38]} 20. Qb1 {[%emt 0:05:59]} c5 {[%emt 0:06:58]} (20... Rfe8 $11) 21. Rc1 $2 {[%emt 0:11:10] [#]} (21. d5 $1 $14 {keeps the upper hand.}) 21... Qd7 {[%emt 0:08:09] [#]} (21... cxd4 $2 22. Nd5 exd5 23. Rxc8 (23. Bxd4 $2 Qe6 $19) 23... Bxc8 24. e5 $16 (24. Nxd4 dxe4 25. Rxa7 Bc5 $11) (24. Rxa7 Nc6 $14)) (21... Nc6 $1 $17 22. e5 Nd5 23. Nxd5 Rxd5) 22. d5 $1 {[%emt 0:05:28]} exd5 {[%emt 0:00:46]} 23. Ne5 {[%emt 0:02:58][%csl LRd5,LRd7]} Qd6 {[%emt 0:01:09]} 24. Nxd5 {[%emt 0:00:13]} Nxd5 {[%emt 0:00:05]} 25. exd5 {[%emt 0:00:06][%cal Ob3b4]} Bf6 {[%emt 0:00:51]} 26. f4 {[%emt 0:04:33]} Rfe8 {[%emt 0:00:22]} 27. Qa1 {[%emt 0:04:34]} b5 {[%emt 0:02:21]} 28. Nc6 {[%emt 0:01:34]} Bxb2 {[%emt 0:00:13]} (28... Nxc6 $1 $11 29. Rxa6 {[%mdl 64] Pin} Re2 30. Bxf6 (30. Rxc6 $2 Rxg2+ {[%mdl 64] Remove Defender, Decoy} 31. Kxg2 Qxd5+ 32. Kg1 Qxc6 $19) 30... Rxg2+ {[%mdl 64] Remove Defender} 31. Kxg2 Qxd5+ 32. Kg1 gxf6 33. Qxf6 Nd4) 29. Qxb2 $16 {[%emt 0:00:04]} Rd7 {[%emt 0:02:45]} 30. Qa1 {[%emt 0:02:08] White has more active pieces.} ({White should play} 30. Qa3 $16 {Black must now prevent Nxb8.} Bc8 31. Qxc5 (31. Nxa7 b4 $14) 31... Re1+ 32. Kf2 Rxc1 33. Qxc1 Nxc6 34. Qxc6) 30... Bb7 $11 {[%emt 0:01:36][%cal Rb8c6]} 31. Ne5 {[%emt 0:00:55]} ({Don't play} 31. Rxa7 Nxc6 32. dxc6 Bxc6 33. Bxc6 Qxc6 34. Rxd7 Qxd7 35. Rxc5 g6 $17) (31. Nxa7 Bxd5 32. Re1 Rxe1+ 33. Qxe1 Bxb3 34. Nxb5 Qd1 $15) (31. Re1 $11 Rf8 32. Qe5 (32. Rxa7 Bxc6 33. dxc6 Rxa7 $17) (32. Nxa7 Qb6 $11)) 31... Rc7 {[%emt 0:03:48]} (31... Rdd8 $15) 32. Rxa7 {[%emt 0:02:03]} f6 {[%emt 0:00:59] [#]} 33. Nc6 {[%emt 0:02:30]} Nxc6 {[%emt 0:00:47]} 34. dxc6 {[%emt 0:00:06]} Bxc6 {[%emt 0:01:20]} 35. Rxc7 {[%emt 0:01:45]} Qxc7 {[%emt 0:00:06]} 36. Rxc5 {[%emt 0:02:35]} Qb6 {[%emt 0:00:03]} 37. b4 {[%emt 0:00:07]} Bxg2 {[%emt 0:00:08]} 38. Qa2+ {[%emt 0:00:45]} Kf8 {[%emt 0:02:01]} 39. Kxg2 {[%emt 0:00:46][%mdl 4096] Endgame KQR-KQR} Qb7+ {[%emt 0:01:20]} 40. Qd5 {[%emt 0:00:00]} Re2+ {[%emt 0:00:00]} ({Black should try} 40... Qe7 $1 $11) 41. Kh3 {[%emt 0:09:31]} (41. Kg1 $1 $14 {deserves consideration.} Qxd5 42. Rxd5) 41... Qxd5 {[%emt 0:01:58]} 42. Rxd5 {[%emt 0:00:14] KR-KR} Rb2 {[%emt 0:00:09]} 43. Rxb5 {[%emt 0:00:05]} g6 {[%emt 0:02:58]} 44. Rb8+ {[%emt 0:07:40]} Kg7 {[%emt 0:00:06]} 45. Rb7+ {[%emt 0:00:05]} Kg8 {[%emt 0:03:20]} 46. g4 {[%emt 0:06:35]} g5 $2 {[%emt 0:01:00]} (46... Rb3+ $14 47. Kg2 Rb2+ 48. Kg3 Rb3+ 49. Kf2 Rb2+ 50. Ke3 Rxh2) 47. f5 $18 {[%emt 0:02:41]} Rb3+ {[%emt 0:00:57]} 48. Kg2 {[%emt 0:00:05] b5 would be deadly.} Rb2+ {[%emt 0:00:06]} 49. Kg3 {[%emt 0:00:06] Threatens to win with b5.} Rb3+ {[%emt 0:00:07]} 50. Kf2 {[%emt 0:00:11] Hoping for b5.} Rb2+ {[%emt 0:00:04]} 51. Kg3 {[%emt 0:00:04] And now b5 would win.} Rb3+ {[%emt 0:00:04]} 52. Kf2 {[%emt 0:00:27]} Rb2+ {[%emt 0:00:05]} 53. Kg3 $2 {[%emt 0:02:24] Weighted Error Value: White=0.31/Black=0.23 (precise)} (53. Ke3 $18) 1/2-1/2